fUSD/lending_fUSD_20240617
["ID","MTS","AMOUNT","RATE_DAILY","PERIOD"]
[329777356,1718663445695,-3814.44,0.00021917,2]
[329777357,1718663445705,-1609.78,0.00021917,2]
[329777358,1718663445714,-686.91,0.00021917,2]
[329777359,1718663445723,-500.0,0.00021917,2]
[329777360,1718663445732,-500.0,0.00021917,2]
[329777361,1718663445742,-1022.11,0.00021917,2]
[329777362,1718663445752,-500.0,0.00021917,2]
[329777363,1718663445766,-7186.45,0.00021917,2]
[329777364,1718663445776,-10374.83,0.00021917,2]
[329777365,1718663445786,-694.97,0.00021917,2]
[329777366,1718663445797,-686.47,0.00021917,2]
[329777367,1718663445806,-5454.14,0.00021917,2]
[329777368,1718663445816,-3788.73,0.00021917,2]
[329777369,1718663445826,-500.0,0.00021917,2]
[329777370,1718663445837,-2958.3,0.00021917,2]
[329777371,1718663445847,-500.0,0.00021917,2]
[329777372,1718663445857,-701.81,0.00021917,2]
[329777373,1718663445867,-500.0,0.00021917,2]
[329777374,1718663445876,-783.77,0.00021917,2]
[329777375,1718663445885,-988.14450895,0.00021917,2]
[329777377,1718663446590,-265.1286,0.00021917,2]
[329777378,1718663446603,-1605.77689105,0.00021917,2]
[329777379,1718663446612,-500.0,0.00021917,2]
[329777380,1718663446622,-1757.3,0.00021917,2]
[329777381,1718663446632,-500.0,0.00021917,2]
[329777382,1718663446642,-4752.71,0.00021917,2]
[329777383,1718663446653,-761.34,0.00021917,2]
[329777384,1718663446665,-34884.03,0.00021917,2]
[329777385,1718663446674,-3223.2,0.00021917,2]
[329777386,1718663446683,-500.0,0.00021917,2]
[329777387,1718663446694,-3877.06,0.00021917,2]
[329777388,1718663446704,-620.77,0.00021917,2]
[329777389,1718663446714,-5174.45,0.00021917,2]
[329777390,1718663446724,-500.0,0.00021917,2]
[329777391,1718663446734,-500.0,0.00021917,2]
[329777392,1718663446743,-500.0,0.00021917,2]
[329777393,1718663446754,-3742.98,0.00021917,2]
[329777394,1718663446768,-500.0,0.00021917,2]
[329777395,1718663446777,-639.79,0.00021917,2]
[329777396,1718663446786,-5960.15,0.00021917,2]
[329777397,1718663446797,-500.0,0.00021917,2]
[329777398,1718663446807,-2637.8,0.00021917,2]
[329777401,1718663446816,-4859.78,0.00021917,2]
[329777402,1718663446826,-6907.92,0.00021917,2]
[329777403,1718663446837,-2113.93,0.00021917,2]
[329777404,1718663446847,-968.11,0.00021917,2]
[329777405,1718663446857,-3070.5,0.00021917,2]
[329777406,1718663446866,-500.0,0.00021917,2]
[329777407,1718663446875,-2994.85,0.00021917,2]
[329777408,1718663446885,-1013.43,0.00021917,2]
[329777409,1718663446894,-514.06909444,0.00021917,2]
[329777410,1718663446904,-3307.13,0.00021917,2]
[329777411,1718663446916,-500.0,0.00021917,2]
[329777412,1718663446925,-500.0,0.00021917,2]
[329777413,1718663446935,-285.19042259,0.00021917,2]
[329777414,1718663446945,-2950.43,0.00021917,2]
[329777415,1718663446954,-1468.7,0.00021917,2]
[329777416,1718663446964,-9081.47,0.00021917,2]
[329777417,1718663446973,-209.27531972,0.00021917,2]
[329777418,1718663446982,-542.7,0.00021917,2]
[329777419,1718663446992,-500.0,0.00021917,2]
[329777420,1718663447002,-3677.23,0.00021917,2]
[329777421,1718663447011,-1273.37,0.00021917,2]
[329777422,1718663447020,-2052.16,0.00021917,2]
[329777423,1718663447030,-500.0,0.00021917,2]
[329777424,1718663447039,-500.0,0.00021917,2]
[329777425,1718663447048,-500.0,0.00021917,2]
[329777426,1718663447058,-12068.69,0.00021917,2]
[329777427,1718663447067,-500.0,0.00021917,2]
[329777428,1718663447077,-500.0,0.00021917,2]
[329777429,1718663447086,-1824.47,0.00021917,2]
[329777430,1718663447095,-500.0,0.00021917,2]
[329777431,1718663447105,-594.4,0.00021917,2]
[329777432,1718663447114,-3328.43,0.00021917,2]
[329777433,1718663447124,-870.21,0.00021917,2]
[329777434,1718663447134,-565.08529502,0.00021917,2]
[329777435,1718663447143,-3785.9,0.00021917,2]
[329777436,1718663447153,-500.0,0.00021917,2]
[329777437,1718663447163,-760.56,0.00021917,2]
[329777438,1718663447172,-2049.22,0.00021917,2]
[329777439,1718663447181,-527.94,0.00021917,2]
[329777440,1718663447190,-1343.85,0.00021917,2]
[329777441,1718663447200,-5936.89,0.00021917,2]
[329777442,1718663447209,-6231.24,0.00021917,2]
[329777443,1718663447219,-817.39,0.00021917,2]
[329777444,1718663447228,-2431.74,0.00021917,2]
[329777445,1718663447238,-75348.0,0.00021918,2]
[329777446,1718663447248,-33764.0,0.00021918,2]
[329777447,1718663447258,-10183.0,0.00021918,2]
[329777448,1718663447267,-163.65,0.00021918,2]
[329777449,1718663447277,-10000.0,0.00022,2]
[329777450,1718663447286,-116812.72443098,0.00022,10]
[329777451,1718663447296,-153.0,0.00022,2]
[329777452,1718663447305,-2000.0,0.00022023,2]
[329777453,1718663447314,-200.0,0.00022023,2]
[329777454,1718663447323,-201.65732967,0.00022091,2]
[329777455,1718663447333,-3426.51457668,0.00022091,2]
[329777456,1718663447342,-172.18062891,0.00022091,2]
[329777457,1718663447351,-157.061806,0.00022146,2]
[329777458,1718663447361,-156.061806,0.00022146,2]
[329777459,1718663447370,-157.061806,0.00022147,2]
[329777460,1718663447380,-157.061806,0.00022147,2]
[329777462,1718663447389,-157.061806,0.00022147,2]
[329777463,1718663447399,-157.061805,0.00022148,2]
[329777464,1718663447408,-157.061805,0.00022148,2]
[329777465,1718663447419,-157.061806,0.00022148,2]
[329777466,1718663447429,-5009.34054403,0.00022166,2]
[329777467,1718663447438,-300.0,0.0002219,2]
[329777468,1718663447448,-500.0,0.00022191,3]
[329777469,1718663447457,-500.0,0.00022191,3]
[329777470,1718663447467,-500.0,0.00022191,3]
[329777471,1718663447477,-500.0,0.00022191,3]
[329777472,1718663447486,-500.0,0.00022191,3]
[329777473,1718663447495,-500.0,0.00022191,3]
[329777474,1718663447505,-500.0,0.00022191,3]
[329777475,1718663447514,-500.0,0.00022191,3]
[329777476,1718663447524,-500.0,0.00022191,3]
[329777477,1718663447533,-500.0,0.00022191,3]
[329777478,1718663447543,-500.0,0.00022191,3]
[329777479,1718663447552,-500.0,0.00022191,3]
[329777480,1718663447562,-500.0,0.00022191,3]
[329777481,1718663447572,-500.0,0.00022191,3]
[329777482,1718663447582,-500.0,0.00022191,3]
[329777483,1718663447591,-500.0,0.00022191,3]
[329777484,1718663447601,-500.0,0.00022191,3]
[329777485,1718663447611,-500.0,0.00022191,3]
[329777486,1718663447621,-500.0,0.00022191,3]
[329777487,1718663447630,-500.0,0.00022191,3]
[329777488,1718663447640,-500.0,0.00022191,3]
[329777489,1718663447650,-500.0,0.00022191,3]
[329777490,1718663447660,-500.0,0.00022191,3]
[329777491,1718663447669,-500.0,0.00022191,3]
[329777492,1718663447679,-500.0,0.00022191,3]
[329777493,1718663447688,-500.0,0.00022191,3]
[329777494,1718663447698,-440.98983041,0.00022191,3]
[329777495,1718663447707,-500.0,0.00022191,3]
[329777496,1718663447717,-500.0,0.00022191,3]
[329777497,1718663447728,-500.0,0.00022191,3]
[329777498,1718663447738,-500.0,0.00022191,3]
[329777499,1718663447748,-500.0,0.00022191,3]
[329777500,1718663447764,-154.877286,0.00022191,7]
[329777501,1718663447774,-500.0,0.00022191,3]
[329777502,1718663447784,-500.0,0.00022191,3]
[329777503,1718663447793,-500.0,0.00022191,3]
[329777504,1718663447805,-500.0,0.00022191,3]
[329777505,1718663447814,-500.0,0.00022191,3]
[329777506,1718663447824,-500.0,0.00022191,3]
[329777507,1718663447835,-500.0,0.00022191,3]
[329777508,1718663447844,-500.0,0.00022191,3]
[329777509,1718663447854,-500.0,0.00022191,3]
[329777510,1718663447863,-500.0,0.00022191,3]
[329777511,1718663447873,-500.0,0.00022191,3]
[329777512,1718663447882,-500.0,0.00022191,3]
[329777513,1718663447891,-500.0,0.00022191,3]
[329777514,1718663447900,-500.0,0.00022191,3]
[329777515,1718663447909,-500.0,0.00022191,3]
[329777516,1718663447919,-500.0,0.00022191,3]
[329777517,1718663447929,-369.89647202,0.00022191,3]
[329777518,1718663447938,-823.14,0.00022191,3]
[329777519,1718663447947,-500.0,0.00022191,3]
[329777520,1718663447956,-438.49675222,0.00022191,3]
[329777521,1718663447976,-330.69324778,0.00022191,3]
[329777522,1718663447986,-500.0,0.00022191,3]
[329777523,1718663447995,-500.0,0.00022191,3]
[329777524,1718663448004,-680.25,0.00022191,3]
[329777525,1718663448014,-710.02,0.00022191,3]
[329777526,1718663448023,-500.0,0.00022191,3]
[329777527,1718663448033,-500.0,0.00022191,3]
[329777528,1718663448042,-500.0,0.00022191,3]
[329777529,1718663448052,-946.59,0.00022191,3]
[329777530,1718663448062,-500.0,0.00022191,3]
[329777531,1718663448071,-500.0,0.00022191,3]
[329777532,1718663448080,-500.0,0.00022191,3]
[329777533,1718663448090,-500.0,0.00022191,3]
[329777534,1718663448100,-500.0,0.00022191,3]
[329777535,1718663448109,-500.0,0.00022191,3]
[329777536,1718663448118,-500.0,0.00022191,3]
[329777537,1718663448128,-500.0,0.00022191,3]
[329777538,1718663448137,-500.0,0.00022191,3]
[329777539,1718663448146,-500.0,0.00022191,3]
[329777540,1718663448156,-500.0,0.00022191,3]
[329777541,1718663448165,-500.0,0.00022191,3]
[329777542,1718663448174,-500.0,0.00022191,3]
[329777543,1718663448183,-1074.17,0.00022191,3]
[329777544,1718663448192,-500.0,0.00022191,3]
[329777545,1718663448201,-500.0,0.00022191,3]
[329777546,1718663448211,-500.0,0.00022191,3]
[329777547,1718663448220,-500.0,0.00022191,3]
[329777548,1718663448229,-500.0,0.00022191,3]
[329777549,1718663448238,-500.0,0.00022191,3]
[329777550,1718663448247,-500.0,0.00022191,3]
[329777551,1718663448256,-500.0,0.00022191,3]
[329777552,1718663448266,-500.0,0.00022191,3]
[329777553,1718663448275,-500.0,0.00022191,3]
[329777554,1718663448284,-744.78,0.00022191,3]
[329777555,1718663448292,-615.4,0.00022191,3]
[329777556,1718663448301,-564.49,0.00022191,3]
[329777557,1718663448310,-1470.72,0.00022191,3]
[329777558,1718663448319,-500.0,0.00022191,3]
[329777559,1718663448328,-500.0,0.00022191,3]
[329777560,1718663448337,-500.0,0.00022191,3]
[329777561,1718663448346,-500.0,0.00022191,3]
[329777562,1718663448355,-620.24,0.00022191,3]
[329777563,1718663448364,-500.0,0.00022191,3]
[329777564,1718663448373,-500.0,0.00022191,3]
[329777565,1718663448383,-633.41,0.00022191,3]
[329777566,1718663448392,-500.0,0.00022191,3]
[329777567,1718663448401,-500.0,0.00022191,3]
[329777568,1718663448410,-500.0,0.00022191,3]
[329777569,1718663448420,-770.42,0.00022191,3]
[329777570,1718663448429,-1115.04,0.00022191,3]
[329777571,1718663448439,-500.0,0.00022191,3]
[329777572,1718663448448,-1703.22,0.00022191,3]
[329777573,1718663448458,-553.82,0.00022191,3]
[329777574,1718663448467,-291.519668,0.00022191,7]
[329777575,1718663448476,-500.0,0.00022191,3]
[329777576,1718663448485,-608.71,0.00022191,3]
[329777577,1718663448495,-571.59,0.00022191,3]
[329777578,1718663448504,-1498.24,0.00022191,3]
[329777579,1718663448513,-500.0,0.00022191,3]
[329777580,1718663448522,-500.0,0.00022191,3]
[329777581,1718663448532,-873.79,0.00022191,3]
[329777582,1718663448541,-500.0,0.00022191,3]
[329777583,1718663448550,-721.87,0.00022191,3]
[329777584,1718663448559,-500.0,0.00022191,3]
[329777585,1718663448569,-500.0,0.00022191,3]
[329777586,1718663448578,-702.48,0.00022191,3]
[329777587,1718663448587,-500.0,0.00022191,3]
[329777588,1718663448596,-905.27,0.00022191,3]
[329777589,1718663448606,-500.0,0.00022191,2]
[329777590,1718663448615,-500.0,0.00022191,3]
[329777591,1718663448624,-500.0,0.00022191,3]
[329777592,1718663448633,-151.0,0.00022191,7]
[329777593,1718663448642,-573.46,0.00022191,3]
[329777594,1718663448651,-500.0,0.00022191,3]
[329777595,1718663448660,-500.0,0.00022191,3]
[329777596,1718663448671,-576.66,0.00022191,3]
[329777597,1718663448680,-535.09,0.00022191,3]
[329777598,1718663448690,-500.0,0.00022191,3]
[329777599,1718663448700,-500.0,0.00022191,3]
[329777600,1718663448709,-1302.97,0.00022191,3]
[329777601,1718663448718,-500.0,0.00022191,3]
[329777602,1718663448727,-669.35,0.00022191,3]
[329777603,1718663448736,-500.0,0.00022191,3]
[329777604,1718663448745,-741.39,0.00022191,3]
[329777605,1718663448755,-544.19,0.00022191,3]
[329777606,1718663448770,-500.0,0.00022191,3]
[329777607,1718663448779,-151.0,0.00022191,7]
[329777608,1718663448788,-500.0,0.00022191,3]
[329777609,1718663448797,-1993.74,0.00022191,3]
[329777610,1718663448808,-500.0,0.00022191,3]
[329777611,1718663448817,-1231.84,0.00022191,3]
[329777612,1718663448826,-500.0,0.00022191,3]
[329777613,1718663448836,-500.0,0.00022191,3]
[329777614,1718663448846,-500.0,0.00022191,3]
[329777615,1718663448856,-500.0,0.00022191,3]
[329777616,1718663448866,-918.53,0.00022191,3]
[329777617,1718663448875,-549.08,0.00022191,3]
[329777618,1718663448885,-1060.9,0.00022191,3]
[329777619,1718663448895,-746.3,0.00022191,3]
[329777620,1718663448904,-500.0,0.00022191,3]
[329777621,1718663448913,-661.54,0.00022191,3]
[329777622,1718663448923,-500.0,0.00022191,3]
[329777623,1718663448932,-500.0,0.00022191,3]
[329777624,1718663448942,-500.0,0.00022191,3]
[329777625,1718663448951,-520.41,0.00022191,3]
[329777626,1718663448960,-151.0,0.00022191,7]
[329777627,1718663448970,-500.0,0.00022191,3]
[329777628,1718663448979,-500.0,0.00022191,3]
[329777629,1718663448988,-315.22488057,0.00022191,3]
[329777630,1718663448997,-760.0,0.00022191,3]
[329777631,1718663449006,-500.0,0.00022191,3]
[329777632,1718663449016,-500.0,0.00022191,3]
[329777633,1718663449025,-1135.84,0.00022191,3]
[329777634,1718663449034,-500.0,0.00022191,3]
[329777635,1718663449043,-500.0,0.00022191,3]
[329777636,1718663449053,-663.53,0.00022191,3]
[329777637,1718663449062,-500.0,0.00022191,3]
[329777638,1718663449072,-1310.77,0.00022191,3]
[329777639,1718663449081,-500.0,0.00022191,3]
[329777640,1718663449090,-1358.04,0.00022191,3]
[329777641,1718663449100,-151.0,0.00022191,7]
[329777642,1718663449109,-628.96,0.00022191,3]
[329777643,1718663449118,-500.0,0.00022191,3]
[329777644,1718663449128,-500.0,0.00022191,3]
[329777645,1718663449137,-500.0,0.00022191,3]
[329777646,1718663449147,-666.7,0.00022191,3]
[329777647,1718663449156,-500.0,0.00022191,3]
[329777648,1718663449167,-500.0,0.00022191,3]
[329777649,1718663449176,-500.0,0.00022191,3]
[329777650,1718663449185,-500.0,0.00022191,3]
[329777651,1718663449194,-151.0,0.00022191,7]
[329777652,1718663449203,-500.0,0.00022191,3]
[329777653,1718663449213,-540.92,0.00022191,3]
[329777654,1718663449222,-500.0,0.00022191,3]
[329777655,1718663449231,-500.0,0.00022191,3]
[329777656,1718663449241,-500.0,0.00022191,3]
[329777657,1718663449251,-540.61,0.00022191,3]
[329777658,1718663449260,-500.0,0.00022191,3]
[329777659,1718663449270,-500.0,0.00022191,3]
[329777660,1718663449280,-500.0,0.00022191,3]
[329777661,1718663449289,-500.0,0.00022191,3]
[329777662,1718663449299,-500.0,0.00022191,3]
[329777663,1718663449309,-1191.9,0.00022191,3]
[329777664,1718663449318,-151.0,0.00022191,7]
[329777665,1718663449327,-656.37,0.00022191,3]
[329777666,1718663449336,-1024.76,0.00022191,3]
[329777667,1718663449346,-151.0,0.00022191,7]
[329777668,1718663449355,-638.09,0.00022191,3]
[329777669,1718663449364,-500.0,0.00022191,3]
[329777670,1718663449373,-500.0,0.00022191,3]
[329777671,1718663449382,-652.83,0.00022191,3]
[329777672,1718663449391,-760.67,0.00022191,3]
[329777673,1718663449401,-500.0,0.00022191,3]
[329777674,1718663449410,-151.0,0.00022191,7]
[329777675,1718663449420,-500.0,0.00022191,3]
[329777676,1718663449429,-500.0,0.00022191,3]
[329777677,1718663449438,-500.0,0.00022191,3]
[329777678,1718663449447,-647.23,0.00022191,3]
[329777679,1718663449456,-500.0,0.00022191,3]
[329777680,1718663449465,-500.0,0.00022191,3]
[329777681,1718663449474,-533.16,0.00022191,3]
[329777682,1718663449483,-500.0,0.00022191,3]
[329777683,1718663449493,-500.0,0.00022191,3]
[329777684,1718663449502,-744.17,0.00022191,3]
[329777685,1718663449511,-500.0,0.00022191,3]
[329777686,1718663449520,-959.15,0.00022191,3]
[329777687,1718663449529,-626.49751351,0.00022191,3]
[329777688,1718663449537,-500.0,0.00022191,3]
[329777689,1718663449547,-500.0,0.00022191,3]
[329777690,1718663449556,-500.0,0.00022191,3]
[329777691,1718663449566,-500.0,0.00022191,3]
[329777692,1718663449575,-500.0,0.00022191,3]
[329777693,1718663449584,-500.0,0.00022191,3]
[329777694,1718663449593,-500.0,0.00022191,3]
[329777695,1718663449602,-503.15,0.00022191,3]
[329777696,1718663449611,-500.0,0.00022191,3]
[329777697,1718663449621,-500.0,0.00022191,3]
[329777698,1718663449630,-1183.99,0.00022191,3]
[329777699,1718663449639,-500.0,0.00022191,3]
[329777700,1718663449648,-718.27,0.00022191,3]
[329777701,1718663449656,-500.0,0.00022191,3]
[329777702,1718663449667,-431.84455875,0.00022191,3]
[329777703,1718663449676,-151.0,0.00022191,7]
[329777704,1718663449686,-500.0,0.00022191,3]
[329777705,1718663449695,-500.0,0.00022191,3]
[329777706,1718663449704,-500.0,0.00022191,3]
[329777707,1718663449713,-743.06,0.00022191,3]
[329777708,1718663449722,-151.0,0.00022191,7]
[329777709,1718663449731,-151.0,0.00022191,7]
[329777710,1718663449740,-500.0,0.00022191,3]
[329777711,1718663449749,-617.9,0.00022191,3]
[329777712,1718663449764,-500.0,0.00022191,3]
[329777713,1718663449774,-534.63,0.00022191,3]
[329777714,1718663449783,-973.52,0.00022191,3]
[329777715,1718663449792,-667.11,0.00022191,3]
[329777716,1718663449804,-500.0,0.00022191,3]
[329777717,1718663449812,-500.0,0.00022191,3]
[329777718,1718663449821,-935.93,0.00022191,3]
[329777719,1718663449832,-500.0,0.00022191,3]
[329777720,1718663449840,-271.07617278,0.00022191,3]
[329777721,1718663449850,-500.0,0.00022191,3]
[329777722,1718663449859,-151.0,0.00022191,7]
[329777723,1718663449868,-712.23,0.00022191,3]
[329777724,1718663449878,-510.31,0.00022191,3]
[329777725,1718663449887,-1077.29,0.00022191,3]
[329777726,1718663449896,-500.0,0.00022191,3]
[329777727,1718663449905,-151.0,0.00022191,7]
[329777728,1718663449915,-1184.56,0.00022191,3]
[329777729,1718663449924,-1215.59,0.00022191,3]
[329777730,1718663449934,-500.0,0.00022191,3]
[329777731,1718663450145,-531.28,0.00022191,3]
[329777732,1718663450156,-500.0,0.00022191,3]
[329777733,1718663450166,-500.0,0.00022191,3]
[329777734,1718663450175,-726.43,0.00022191,3]
[329777735,1718663450184,-528.89,0.00022191,3]
[329777736,1718663450193,-716.74,0.00022191,3]
[329777737,1718663450202,-500.0,0.00022191,3]
[329777738,1718663450211,-1033.15,0.00022191,3]
[329777739,1718663450220,-500.0,0.00022191,3]
[329777740,1718663450230,-500.0,0.00022191,3]
[329777741,1718663450239,-500.0,0.00022191,3]
[329777742,1718663450248,-500.0,0.00022191,3]
[329777743,1718663450258,-500.0,0.00022191,3]
[329777744,1718663450267,-500.0,0.00022191,3]
[329777745,1718663450277,-1180.09,0.00022191,3]
[329777746,1718663450286,-706.36,0.00022191,3]
[329777747,1718663450296,-500.0,0.00022191,3]
[329777748,1718663450306,-500.0,0.00022191,3]
[329777749,1718663450316,-151.0,0.00022191,7]
[329777750,1718663450325,-719.75,0.00022191,3]
[329777751,1718663450335,-895.17,0.00022191,3]
[329777752,1718663450344,-635.7764805,0.00022191,3]
[329777753,1718663450354,-500.0,0.00022191,3]
[329777754,1718663450363,-500.0,0.00022191,3]
[329777755,1718663450373,-1050.8,0.00022191,3]
[329777756,1718663450383,-500.0,0.00022191,3]
[329777757,1718663450392,-500.0,0.00022191,3]
[329777758,1718663450402,-500.0,0.00022191,3]
[329777759,1718663450412,-500.0,0.00022191,3]
[329777760,1718663450422,-500.0,0.00022191,3]
[329777761,1718663450432,-306.62281928,0.00022191,3]
[329777762,1718663450441,-500.0,0.00022191,3]
[329777763,1718663450452,-595.24,0.00022191,3]
[329777764,1718663450461,-549.665923,0.00022191,3]
[329777765,1718663450471,-500.0,0.00022191,3]
[329777766,1718663450481,-500.0,0.00022191,3]
[329777767,1718663450491,-500.0,0.00022191,3]
[329777768,1718663450500,-500.0,0.00022191,3]
[329777769,1718663450511,-500.0,0.00022191,3]
[329777770,1718663450520,-931.69,0.00022191,3]
[329777771,1718663450529,-1406.35,0.00022191,3]
[329777772,1718663450539,-500.0,0.00022191,3]
[329777773,1718663450548,-500.0,0.00022191,3]
[329777774,1718663450558,-500.0,0.00022191,3]
[329777775,1718663450567,-500.0,0.00022191,3]
[329777776,1718663450577,-500.0,0.00022191,3]
[329777777,1718663450587,-500.0,0.00022191,3]
[329777778,1718663450596,-705.02,0.00022191,3]
[329777779,1718663450605,-500.0,0.00022191,3]
[329777780,1718663450616,-500.0,0.00022191,3]
[329777781,1718663450626,-500.0,0.00022191,3]
[329777782,1718663450636,-622.72006049,0.00022191,3]
[329777783,1718663450645,-911.86,0.00022191,3]
[329777784,1718663450655,-500.0,0.00022191,3]
[329777785,1718663450665,-500.0,0.00022191,3]
[329777786,1718663450675,-158.969233,0.00022191,7]
[329777787,1718663450684,-500.0,0.00022191,3]
[329777788,1718663450694,-1145.22,0.00022191,3]
[329777789,1718663450704,-500.0,0.00022191,3]
[329777790,1718663450713,-746.77,0.00022191,3]
[329777791,1718663450723,-480.27521316,0.00022191,3]
[329777792,1718663450733,-500.0,0.00022191,3]
[329777793,1718663450743,-810.48,0.00022191,3]
[329777794,1718663450754,-1458.44,0.00022191,3]
[329777795,1718663450769,-832.07,0.00022191,3]
[329777796,1718663450779,-151.0,0.00022191,7]
[329777797,1718663450788,-799.8,0.00022191,3]
[329777798,1718663450798,-500.0,0.00022191,3]
[329777799,1718663450809,-544.62,0.00022191,3]
[329777800,1718663450818,-500.0,0.00022191,3]
[329777801,1718663450828,-268.41,0.00022191,3]
[329777802,1718663450841,-151.0,0.00022191,7]
[329777803,1718663450851,-15289.63,0.00022191,3]
[329777804,1718663450861,-1474.79,0.00022191,3]
[329777805,1718663450870,-152.490432,0.00022191,7]
[329777806,1718663450880,-500.0,0.00022191,3]
[329777807,1718663450890,-525.33,0.00022191,3]
[329777808,1718663450900,-722.8,0.00022191,3]
[329777809,1718663450909,-500.0,0.00022191,3]
[329777810,1718663450920,-500.0,0.00022191,3]
[329777811,1718663450931,-5237.94,0.00022191,3]
[329777812,1718663450940,-500.0,0.00022191,3]
[329777813,1718663450950,-2627.23,0.00022191,3]
[329777814,1718663450960,-500.0,0.00022191,3]
[329777815,1718663450970,-500.0,0.00022191,3]
[329777816,1718663450980,-928.7,0.00022191,3]
[329777817,1718663450990,-500.0,0.00022191,3]
[329777818,1718663450999,-151.0,0.00022191,7]
[329777819,1718663451008,-650.97,0.00022191,3]
[329777820,1718663451018,-151.0,0.00022191,7]
[329777821,1718663451028,-566.32,0.00022191,3]
[329777822,1718663451038,-2275.67,0.00022191,3]
[329777823,1718663451048,-500.0,0.00022191,3]
[329777824,1718663451057,-1122.39,0.00022191,3]
[329777825,1718663451067,-151.0,0.00022191,7]
[329777826,1718663451076,-500.0,0.00022191,3]
[329777827,1718663451086,-2684.22,0.00022191,3]
[329777828,1718663451096,-4092.17,0.00022191,3]
[329777829,1718663451106,-727.99,0.00022191,3]
[329777830,1718663451115,-500.0,0.00022191,3]
[329777831,1718663451125,-2224.07,0.00022191,3]
[329777832,1718663451135,-559.80928086,0.00022191,3]
[329777833,1718663451146,-151.0,0.00022191,7]
[329777834,1718663451156,-500.0,0.00022191,3]
[329777835,1718663451165,-500.0,0.00022191,3]
[329777836,1718663451174,-5369.73,0.00022191,3]
[329777837,1718663451184,-4340.72,0.00022191,3]
[329777838,1718663451193,-1344.4,0.00022191,3]
[329777839,1718663451203,-161.567076,0.00022191,7]
[329777840,1718663451212,-500.0,0.00022191,3]
[329777841,1718663451222,-582.71,0.00022191,3]
[329777842,1718663451232,-1347.53,0.00022191,3]
[329777843,1718663451242,-7604.92,0.00022191,3]
[329777844,1718663451252,-500.0,0.00022191,3]
[329777845,1718663451262,-878.98,0.00022191,3]
[329777846,1718663451271,-920.51,0.00022191,3]
[329777847,1718663451281,-151.0,0.00022191,7]
[329777848,1718663451290,-500.0,0.00022191,3]
[329777849,1718663451300,-500.0,0.00022191,3]
[329777850,1718663451309,-2092.9,0.00022191,3]
[329777851,1718663451319,-662.48,0.00022191,3]
[329777852,1718663451329,-5704.45,0.00022191,3]
[329777853,1718663451339,-769.59,0.00022191,3]
[329777854,1718663451349,-1677.66,0.00022191,3]
[329777855,1718663451359,-6422.1,0.00022191,3]
[329777856,1718663451370,-500.0,0.00022191,3]
[329777857,1718663451379,-1509.76,0.00022191,3]
[329777858,1718663451389,-500.0,0.00022191,3]
[329777859,1718663451399,-1551.9,0.00022191,3]